Workbook

Sheet Инструкция
AA1: (требуется обновление)
B2: ="Код шаблона: " & GetCode() -> Код шаблона: FORMA4.BH
B3: ="Версия " & GetVersion() -> Версия 1.0
B5: Отчёт о движении денежных средств
E7: • На рабочем месте должен быть установлен MS Office 2003 SP3, 2007 SP3, 2010 с полной версией MS Excel • Макросы во время работы должны быть включены (!) • Для корректной работы отчёта требуется выбрать низкий уровень безопасности (В меню MS Excel 2003: Сервис | Макрос | Безопасность | выбрать пункт «Низкая безопасность» | OK) (В меню MS Excel 2007/2010: Параметры Excel | Центр управления безопасностью | Параметры центра управления безопасностью | Параметры макросов | Включить все макросы | ОК) • Если Вы работаете в табличном процессоре MS Excel 2007 и выше, то можете использовать для работы формат XLSM (Книга Excel с поддержкой макросов). При работе в формате XLSM заметно быстрее происходит сохранение файла, а также уменьшается размер по сравнению с форматом XLS • Не рекомендуется снимать защиту с листов и каким-либо образом модифицировать защищаемые формулы и расчётные поля, в противном случае, отчёт будет отклонён системой • При сохранении не следует выбирать формат XLSX (Книга Excel), так как в указанном формате макросы, необходимы для работы отчёта, безвозвратно удаляются
E21: A | F21: - предназначенные для заполнения | O21: A | P21: - обязательные для заполнения поля
E22: A | F22: - с формулами и константами | O22: A | P22: - незаполняемые поля
E35: Если в предложенном Вам списке необходимая организация, МР/МО отсутствуют, обновите реестры с помощью кнопок В результате синхронизации с базой данных список организаций (МР/МО) будет заменён актуальным (механизм синхронизации требует подключения к сети Интернет и основан на использовании протокола HTTPS (TCP порт 443)) Если после обновления Вам не удалось найти необходимую организацию в списке, обратитесь к ответственному за поддержание реестра Вашего региона. Информация о региональных органах регулирования доступна по ссылке:
E40: http://www.fstrf.ru/regions/region/showlist
E41: • Работа с отчётом начинается с выбора наименования субъекта Российской Федерации • После выбора субъекта производится обновление реестра муниципальных образований, также за одно нажатие можно обновить реестры организаций по всем сферам деятельности • Отображение и скрытие группы листов, а также автозаполнение листов, производится с помощью кнопок, либо при нажатии на ОКТМО, либо номер муниципального образования, все действия, манипуляции, вызов форм ввода на листах осуществляются двойным щелчком мыши
E46: • При сохранении шаблона осуществляется проверка корректности данных, в том числе на наличие значений в ячейках, обязательных для заполнения • Если какая-то ячейка не удовлетворяет условию проверки, на лист «Проверка» добавляется гиперссылка на данную ячейку и указывается причина ошибки • В колонке «Статус» для каждого сообщения возможны 2 значения: ошибка и предупреждение • При наличии сообщений со статусом «Ошибка» шаблон будет отклонён системой и не будет загружен в хранилище данных, сообщения со статусом «Предупреждение» носят информационный характер, и такой шаблон будет принят системой
E58: Web-сайт: | H58: http://support.eias.ru/index.php?a=add&catid=5
E59: Дистрибутивы: | H59: http://eias.ru/?page=show_distrs
H60: для устранения ошибок (например, "Compile error in hidden module")
E70: Список сокращений
E72: ОКПО | G72: Общероссийский классификатор предприятий и организаций
E73: ОКВЭД | G73: Общероссийский классификатор видов экономической деятельности | Q73: http://www.gmcgks.ru/index.php?id=21053
E74: ОКАТО | G74: Общероссийский классификатор объектов административно-территориального деления | Q74: http://www.gmcgks.ru/index.php?id=21046
E75: ОКОГУ | G75: Общероссийский классификатор органов государственной власти и управления | Q75: http://www.gmcgks.ru/index.php?id=21036
E76: ОКОПФ | G76: Общероссийский классификатор организационно-правовых форм | Q76: http://www.gmcgks.ru/index.php?id=21052
E77: ОКФС | G77: Общероссийский классификатор форм собственности | Q77: http://www.gmcgks.ru/index.php?id=21051
E78: ОКУД | G78: Общероссийский классификатор управленческой документации | Q78: http://www.gmcgks.ru/index.php?id=21039
E79: ОКЕИ | G79: Общероссийский классификатор единиц измерения | Q79: http://www.gmcgks.ru/index.php?id=21042
E80: ОКТМО | G80: Общероссийский классификатор территорий муниципальных образований | Q80: http://www.gks.ru/metod/classifiers.html
E83: Web-сайт: | H83: http://support.eias.ru/index.php?a=add&catid=5
E99: При наличии подключения к Интернет, можно автоматически проверять наличие доступных обновлений. Выберите способ оповещения о наличии обновлений для отчёта:
F101: проверять доступные обновления (рекомендуется) | AA101: y
F103: никогда не проверять наличие обновлений (не рекомендуется)

Sheet Лог обновления (hidden)
A2: 3/17/2012 12:12:41 AM | B2: Дата/Время | C2: Сообщение | D2: Статус
B3: 4/22/2017 11:08:41 AM | C3: Проверка доступных обновлений... | D3: Информация
B4: 4/22/2017 11:08:42 AM | C4: Доступно обновление до версии 2.0.1 | D4: Информация
B5: 4/22/2017 11:08:42 AM | C5: Описание изменений: Версия 2.0.1 (только с версии 2.0) - Расширен список лет для заполнения. | D5: Информация
B6: 4/22/2017 11:08:42 AM | C6: Размер файла обновления: 292352 байт | D6: Информация
B7: 4/22/2017 11:08:48 AM | C7: Обновление отменено пользователем | D7: Предупреждение
B8: 4/22/2017 11:46:55 AM | C8: Проверка доступных обновлений... | D8: Информация
B9: 4/22/2017 11:46:55 AM | C9: Доступно обновление до версии 2.0.1 | D9: Информация
B10: 4/22/2017 11:46:56 AM | C10: Описание изменений: Версия 2.0.1 (только с версии 2.0) - Расширен список лет для заполнения. | D10: Информация
B11: 4/22/2017 11:46:56 AM | C11: Размер файла обновления: 292352 байт | D11: Информация
B12: 4/22/2017 11:46:58 AM | C12: Обновление отменено пользователем | D12: Предупреждение
B13: 4/22/2017 12:38:23 PM | C13: Проверка доступных обновлений... | D13: Информация
B14: 4/22/2017 12:38:23 PM | C14: Доступно обновление до версии 2.0.1 | D14: Информация
B15: 4/22/2017 12:38:24 PM | C15: Описание изменений: Версия 2.0.1 (только с версии 2.0) - Расширен список лет для заполнения. | D15: Информация
B16: 4/22/2017 12:38:24 PM | C16: Размер файла обновления: 292352 байт | D16: Информация
B17: 4/22/2017 12:38:27 PM | C17: Обновление отменено пользователем | D17: Предупреждение

Sheet Титульный
J3: =version -> Версия 1.0
C4: Отчёт о движении денежных средств
C9: Субъект РФ | D9: Кировская область | H9: Приложение к Приказу Минфина РФ от 02.07.2010 № 66н (в ред. Приказов Минфина России от 05.10.2011 №124н, от 17.08.2012 №113н, от 04.12.2012 №154н)
D11: Отчётный период
C12: Год | D12: 2016
C14: Отчётная дата | D14: 31.12.2016
C16: Признак филиала | D16: нет
H18: Форма по ОКУД | I18: 0710004
H19: Дата (год,месяц,число) | I19: 31.12.2016
C20: Организация | D20: ООО Водоотведение | H20: Код* по ОКПО | I20: 32889481
C21: Наименование филиала:
C22: ИНН | D22: 4307017925 | H22: Код* по ОКВЭД | I22: 37.00
C23: КПП | D23: 430701001 | H23: Код* по ОКОПФ/ОКФС | I23: 12165 | J23: 16
C24: Вид деятельности | D24: Оказание услуг в сфере водоотведения и очистки стрчных вод | H24: Код* по ОКЕИ | I24: 384
C25: Организационно-правовая форма/форма собственности | D25: 12165 | E25: / | F25: 16
C26: Единица измерения | D26: тыс.руб. | I26: * Расшифровки всех сокращений и ссылки приведены на листе "Инструкция"
D29: Дата последнего обновления реестра МР/МО: 22.04.2017 11:09:41
C30: Муниципальный район | D30: Вятские Поляны
C32: Муниципальное образование | D32: Вятские Поляны
C34: ОКТМО | D34: 33704000
D36: Адрес организации
C37: Юридический адрес | D37: 612961, Кировская область,г.Вятские Поляны,ул.Урицкого, д.20
C38: Почтовый адрес | D38: 612961,Кировская область,г.Вятские Поляны,ул.Ленина, д.17, п/я 11
D40: Руководитель
C41: Фамилия, имя, отчество | D41: Гладышев Сергей Михайлович
C42: (код) номер телефона | D42: 8(83334)6-24-82
D44: Главный бухгалтер
C45: Фамилия, имя, отчество | D45: Соловьева Эльвира Владимировна
C46: (код) номер телефона | D46: 8(83334)7-52-62
D48: Должностное лицо, ответственное за составление формы
C49: Фамилия, имя, отчество | D49: Селезнева Татьяна Александровна
C50: Должность | D50: главный экономист
C51: (код) номер телефона | D51: 8(83334)7-52-62
C52: e-mail | D52: vodootvedenie@inbox.ru

Sheet стр 1-2
M7: Форма 0710004 с. 1-2
E8: Отчёт о движении денежных средств
M10: =IF(unit="","",unit) -> тыс.руб.
E11: № п/п | F11: Наименование | G11: Код | H11: ="За "&IF(OR(god="",_prd2=""),"отчётный период",IF(_prd2="год"," "&god&" год",_prd2&" "&god&" года")) -> За отчётный период | K11: ="За "&IF(OR(god="",_prd2=""),"период предыдущего года, аналогичный отчётному периоду",IF(_prd2="год"," "&god-1&" год",_prd2&" "&god-1&" года")) -> За период предыдущего года, аналогичный отчётному периоду
E13: 1 | F13: 2 | G13: 3 | H13: 4 | K13: 5
E14: 1 | F14: Денежные потоки от текущих операций
E15: 1.1 | F15: Поступления - всего, в том числе: | G15: 4110 | H15: =IF((SUMIF(H16:H19,"",I16:I19)-SUMIF(H16:H19,"(",I16:I19))<0,"(","") ->  | I15: =ABS(SUMIF(H16:H19,"",I16:I19)-SUMIF(H16:H19,"(",I16:I19)) -> 57,584 | J15: =IF(H15="(",")","") ->  | K15: =IF((SUMIF(K16:K19,"",L16:L19)-SUMIF(K16:K19,"(",L16:L19))<0,"(","") ->  | L15: =ABS(SUMIF(K16:K19,"",L16:L19)-SUMIF(K16:K19,"(",L16:L19)) -> 54,744 | M15: =IF(K15="(",")","") -> 
E16: 1.1.1 | F16: от продажи продукции, товаров, работ и услуг | G16: 4111 | I16: 57552 | L16: 54739
E17: 1.1.2 | F17: арендных платежей, лицензионных платежей, роялти, комиссионных и иных аналогичных платежей | G17: 4112
E18: 1.1.3 | F18: от перепродажи финансовых вложений | G18: 4113
E19: 1.1.4 | F19: прочие поступления | G19: 4119 | I19: 32 | L19: 5
E20: 1.2 | F20: Платежи - всего, в том числе: | G20: 4120 | H20: ( | I20: =SUM(I21:I25) -> 58829 | J20: ) | K20: ( | L20: =SUM(L21:L25) -> 54184 | M20: )
E21: 1.2.1 | F21: поставщикам (подрядчикам) за сырье, материалы, работы, услуги | G21: 4121 | H21: ( | I21: 29170 | J21: ) | K21: ( | L21: 26222 | M21: )
E22: 1.2.2 | F22: в связи с оплатой труда работников | G22: 4122 | H22: ( | I22: 19180 | J22: ) | K22: ( | L22: 17990 | M22: )
E23: 1.2.3 | F23: процентов по долговым обязательствам | G23: 4123 | H23: ( | J23: ) | K23: ( | M23: )
E24: 1.2.4 | F24: налога на прибыль организаций | G24: 4124 | H24: ( | J24: ) | K24: ( | M24: )
E25: 1.2.5 | F25: прочие платежи | G25: 4129 | H25: ( | I25: 10479 | J25: ) | K25: ( | L25: 9972 | M25: )
E26: 1.3 | F26: Сальдо денежных потоков от текущих операций | G26: 4100 | H26: =IF((IF(H15="(",-I15,I15)+IF(H20="(",-I20,I20))<0,"(","") -> ( | I26: =ABS(IF(H15="(",-I15,I15)+IF(H20="(",-I20,I20)) -> 1,245 | J26: =IF(H26="(",")","") -> ) | K26: =IF((IF(K15="(",-L15,L15)+IF(K20="(",-L20,L20))<0,"(","") ->  | L26: =ABS(IF(K15="(",-L15,L15)+IF(K20="(",-L20,L20)) -> 560 | M26: =IF(K26="(",")","") -> 
E27: 2 | F27: Денежные потоки от инвестиционных операций
E28: 2.1 | F28: Поступления - всего, в том числе: | G28: 4210 | H28: =IF((SUMIF(H29:H33,"",I29:I33)-SUMIF(H29:H33,"(",I29:I33))<0,"(","") ->  | I28: =ABS(SUMIF(H29:H33,"",I29:I33)-SUMIF(H29:H33,"(",I29:I33)) -> 1,500 | J28: =IF(H28="(",")","") ->  | K28: =IF((SUMIF(K29:K33,"",L29:L33)-SUMIF(K29:K33,"(",L29:L33))<0,"(","") ->  | L28: =ABS(SUMIF(K29:K33,"",L29:L33)-SUMIF(K29:K33,"(",L29:L33)) -> 0 | M28: =IF(K28="(",")","") -> 
E29: 2.1.1 | F29: от продажи внеоборотных активов (кроме финансовых вложений) | G29: 4211
E30: 2.1.2 | F30: от продажи акций других организаций (долей участия) | G30: 4212
E31: 2.1.3 | F31: от возврата предоставленных займов, от продажи долговых ценных бумаг (прав требования денежных средств к другим лицам) | G31: 4213
E32: 2.1.4 | F32: дивидендов, процентов по долговым финансовым вложениям и аналогичных поступлений от долевого участия в других организациях | G32: 4214
E33: 2.1.5 | F33: прочие поступления | G33: 4219 | I33: 1500
E34: 2.2 | F34: Платежи - всего, в том числе: | G34: 4220 | H34: ( | I34: =SUM(I35:I39) -> 0 | J34: ) | K34: ( | L34: =SUM(L35:L39) -> 0 | M34: )
E35: 2.2.1 | F35: в связи с приобретением, созданием, модернизацией, реконструкцией и подготовкой к использованию внеоборотных активов | G35: 4221 | H35: ( | J35: ) | K35: ( | M35: )
E36: 2.2.2 | F36: в связи с приобретением акций других организаций (долей участия) | G36: 4222 | H36: ( | J36: ) | K36: ( | M36: )
E37: 2.2.3 | F37: в связи с приобретением долговых ценных бумаг (прав требования денежных средств к другим лицам), предоставление займов другим лицам | G37: 4223 | H37: ( | J37: ) | K37: ( | M37: )
E38: 2.2.4 | F38: процентов по долговым обязательствам, включаемым в стоимость инвестиционного актива | G38: 4224 | H38: ( | J38: ) | K38: ( | M38: )
E39: 2.2.5 | F39: прочие платежи | G39: 4229 | H39: ( | J39: ) | K39: ( | M39: )
E40: 2.3 | F40: Сальдо денежных потоков от инвестиционных операций | G40: 4200 | H40: =IF((IF(H28="(",-I28,I28)+IF(H34="(",-I34,I34))<0,"(","") ->  | I40: =ABS(IF(H28="(",-I28,I28)+IF(H34="(",-I34,I34)) -> 1,500 | J40: =IF(H40="(",")","") ->  | K40: =IF((IF(K28="(",-L28,L28)+IF(K34="(",-L34,L34))<0,"(","") ->  | L40: =ABS(IF(K28="(",-L28,L28)+IF(K34="(",-L34,L34)) -> 0 | M40: =IF(K40="(",")","") -> 
E41: 3 | F41: Денежные потоки от финансовых операций
E42: 3.1 | F42: Поступления - всего, в том числе: | G42: 4310 | H42: =IF((SUMIF(H43:H47,"",I43:I47)-SUMIF(H43:H47,"(",I43:I47))<0,"(","") ->  | I42: =ABS(SUMIF(H43:H47,"",I43:I47)-SUMIF(H43:H47,"(",I43:I47)) -> 0 | J42: =IF(H42="(",")","") ->  | K42: =IF((SUMIF(K43:K47,"",L43:L47)-SUMIF(K43:K47,"(",L43:L47))<0,"(","") ->  | L42: =ABS(SUMIF(K43:K47,"",L43:L47)-SUMIF(K43:K47,"(",L43:L47)) -> 0 | M42: =IF(K42="(",")","") -> 
E43: 3.1.1 | F43: получение кредитов и займов | G43: 4311
E44: 3.1.2 | F44: денежных вкладов собственников (участников) | G44: 4312
E45: 3.1.3 | F45: от выпуска акций, увеличения долей участия | G45: 4313
E46: 3.1.4 | F46: от выпуска облигаций, векселей и других долговых ценных бумаг и др. | G46: 4314
E47: 3.1.5 | F47: прочие поступления | G47: 4319
E48: 3.2 | F48: Платежи - всего, в том числе: | G48: 4320 | H48: ( | I48: =SUM(I49:I52) -> 0 | J48: ) | K48: ( | L48: =SUM(L49:L52) -> 14 | M48: )
E49: 3.2.1 | F49: собственникам (участникам) в связи с выкупом у них акций (долей участия) организации или их выходом из состава участников | G49: 4321 | H49: ( | J49: ) | K49: ( | M49: )
E50: 3.2.2 | F50: на уплату дивидендов и иных платежей по распределению прибыли в пользу собственников (участников) | G50: 4322 | H50: ( | J50: ) | K50: ( | M50: )
E51: 3.2.3 | F51: в связи с погашением (выкупом) векселей и других долговых ценных бумаг, возврат кредитов и займов | G51: 4323 | H51: ( | J51: ) | K51: ( | M51: )
E52: 3.2.4 | F52: прочие платежи | G52: 4329 | H52: ( | J52: ) | K52: ( | L52: 14 | M52: )
E53: 3.3 | F53: Сальдо денежных потоков от финансовых операций | G53: 4300 | H53: =IF((IF(H42="(",-I42,I42)+IF(H48="(",-I48,I48))<0,"(","") ->  | I53: =ABS(IF(H42="(",-I42,I42)+IF(H48="(",-I48,I48)) -> 0 | J53: =IF(H53="(",")","") ->  | K53: =IF((IF(K42="(",-L42,L42)+IF(K48="(",-L48,L48))<0,"(","") -> ( | L53: =ABS(IF(K42="(",-L42,L42)+IF(K48="(",-L48,L48)) -> 14 | M53: =IF(K53="(",")","") -> )
E54: 4 | F54: Сальдо денежных потоков за отчетный период | G54: 4400 | H54: =IF((IF(H26="(",-I26,I26)+IF(H40="(",-I40,I40)+IF(H53="(",-I53,I53))<0,"(","") ->  | I54: =ABS(IF(H26="(",-I26,I26)+IF(H40="(",-I40,I40)+IF(H53="(",-I53,I53)) -> 255 | J54: =IF(H54="(",")","") ->  | K54: =IF((IF(K26="(",-L26,L26)+IF(K40="(",-L40,L40)+IF(K53="(",-L53,L53))<0,"(","") ->  | L54: =ABS(IF(K26="(",-L26,L26)+IF(K40="(",-L40,L40)+IF(K53="(",-L53,L53)) -> 546 | M54: =IF(K54="(",")","") -> 
E55: 5 | F55: Остаток денежных средств и денежных эквивалентов на начало отчетного периода | G55: 4450 | I55: 44 | L55: 195
E56: 6 | F56: Остаток денежных средств и денежных эквивалентов на конец отчетного периода | G56: 4500 | H56: =IF((IF(H54="(",-I54,I54)+IF(H55="(",-I55,I55)+IF(H57="(",-I57,I57))<0,"(","") ->  | I56: =ABS(IF(H54="(",-I54,I54)+IF(H55="(",-I55,I55)+IF(H57="(",-I57,I57)) -> 299 | J56: =IF(H56="(",")","") ->  | K56: =IF((IF(K54="(",-L54,L54)+IF(K55="(",-L55,L55)+IF(K57="(",-L57,L57))<0,"(","") ->  | L56: =ABS(IF(K54="(",-L54,L54)+IF(K55="(",-L55,L55)+IF(K57="(",-L57,L57)) -> 741 | M56: =IF(K56="(",")","") -> 
E57: 7 | F57: Величина влияния изменений курса иностранной валюты по отношению к рублю | G57: 4490

Sheet Расшифровка показателей
A2: Амурская область
M7: Форма 0710004 с. 3
E8: Расшифровка отдельных показателей
M10: =IF(unit="","",unit) -> тыс.руб.
E11: № п/п | F11: Пассив | G11: Код | H11: ="За "&IF(OR(god="",_prd2=""),"отчётный период",IF(_prd2="год"," "&god&" год",_prd2&" "&god&" года")) -> За отчётный период | K11: ="За "&IF(OR(god="",_prd2=""),"аналогичный период предыдущего года",IF(_prd2="год"," "&god-1&" год",_prd2&" "&god-1&" года")) -> За аналогичный период предыдущего года
E12: 1 | F12: 2 | G12: 3 | H12: 4 | K12: 5
E13: 1 | F13: Прочие поступления от текущих операций (стр. 4119), в том числе: | H13: =IF('стр 1-2'!H19="(","(","") ->  | I13: ='стр 1-2'!I19 -> 32 | J13: =IF(flagParenthesis_Indicators_1="(",")","") ->  | K13: =IF('стр 1-2'!K19="(","(","") ->  | L13: ='стр 1-2'!L19 -> 5 | M13: =IF(flagParenthesis_Indicators_2="(",")","") -> 
E14: 1.1 | F14: поступления от окаазания прочих услуг | G14: 41191 | I14: 32 | L14: 5
E15: 1.2 | G15: 41192
E16: 1.3 | G16: 41193
E17: 1.4 | G17: 41194
E18: 1.5 | G18: 41195
F19: Добавить строку
E20: 2 | F20: На прочие платежи от текущих операций (стр. 4129), в том числе: | H20: =IF('стр 1-2'!H25="(","(","") -> ( | I20: ='стр 1-2'!I25 -> 10479 | J20: =IF(H20="(",")","") -> ) | K20: =IF('стр 1-2'!K25="(","(","") -> ( | L20: ='стр 1-2'!L25 -> 9972 | M20: =IF(K20="(",")","") -> )
E21: 2.1 | F21: налоги и взносы | G21: 41291 | H21: ( | I21: 9221 | J21: ) | K21: ( | L21: 8862 | M21: )
E22: 2.2 | F22: прочие | G22: 41292 | H22: ( | I22: 1258 | J22: ) | K22: ( | L22: 1110 | M22: )
E23: 2.3 | G23: 41293 | H23: ( | J23: ) | K23: ( | M23: )
E24: 2.4 | G24: 41294 | H24: ( | J24: ) | K24: ( | M24: )
E25: 2.5 | G25: 41295 | H25: ( | J25: ) | K25: ( | M25: )
F26: Добавить строку
E27: 3 | F27: Прочие поступления от инвестиционных операций (стр. 4219), в том числе: | H27: =IF('стр 1-2'!H33="(","(","") ->  | I27: ='стр 1-2'!I33 -> 1500 | J27: =IF(H27="(",")","") ->  | K27: =IF('стр 1-2'!K33="(","(","") ->  | L27: ='стр 1-2'!L33 -> 0 | M27: =IF(K27="(",")","") -> 
E28: 3.1 | G28: 42191
E29: 3.2 | G29: 42192
E30: 3.3 | G30: 42193
E31: 3.4 | G31: 42194
E32: 3.5 | G32: 42195
F33: Добавить строку
E34: 4 | F34: На прочие платежи от инвестиционных операций (стр. 4229), в том числе: | H34: =IF('стр 1-2'!H39="(","(","") -> ( | I34: ='стр 1-2'!I39 -> 0 | J34: =IF(H34="(",")","") -> ) | K34: =IF('стр 1-2'!K39="(","(","") -> ( | L34: ='стр 1-2'!L39 -> 0 | M34: =IF(K34="(",")","") -> )
E35: 4.1 | G35: 42291 | H35: ( | J35: ) | K35: ( | M35: )
E36: 4.2 | G36: 42292 | H36: ( | J36: ) | K36: ( | M36: )
E37: 4.3 | G37: 42293 | H37: ( | J37: ) | K37: ( | M37: )
E38: 4.4 | G38: 42294 | H38: ( | J38: ) | K38: ( | M38: )
E39: 4.5 | G39: 42295 | H39: ( | J39: ) | K39: ( | M39: )
F40: Добавить строку
E41: 5 | F41: Другие поступления от финансовых операций (стр. 4319), в том числе: | H41: =IF('стр 1-2'!H47="(","(","") ->  | I41: ='стр 1-2'!I47 -> 0 | J41: =IF(H41="(",")","") ->  | K41: =IF('стр 1-2'!K47="(","(","") ->  | L41: ='стр 1-2'!L47 -> 0 | M41: =IF(K41="(",")","") -> 
E42: 5.1 | G42: 43191
E43: 5.2 | G43: 43192
E44: 5.3 | G44: 43193
E45: 5.4 | G45: 43194
E46: 5.5 | G46: 43195
F47: Добавить строку
E48: 6 | F48: На прочие платежи от финансовых операций (стр. 4329), в том числе: | H48: =IF('стр 1-2'!H52="(","(","") -> ( | I48: ='стр 1-2'!I52 -> 0 | J48: =IF(H48="(",")","") -> ) | K48: =IF('стр 1-2'!K52="(","(","") -> ( | L48: ='стр 1-2'!L52 -> 14 | M48: =IF(K48="(",")","") -> )
E49: 6.1 | G49: 43291 | H49: ( | J49: ) | K49: ( | M49: )
E50: 6.2 | G50: 43292 | H50: ( | J50: ) | K50: ( | M50: )
E51: 6.3 | G51: 43293 | H51: ( | J51: ) | K51: ( | M51: )
E52: 6.4 | G52: 43294 | H52: ( | J52: ) | K52: ( | M52: )
E53: 6.5 | G53: 43295 | H53: ( | J53: ) | K53: ( | M53: )
F54: Добавить строку

Sheet Комментарии
E7: Ниже вы можете оставить свои комментарии
E9: 1 | F9: Данные заполнены за период с 01.01.2016-31.12.2016г
F10: Добавить комментарий

Sheet Проверка
E10: Результат проверки
E12: Ссылка | F12: Причина | G12: Статус
E13: 1 | F13: 2 | G13: 3

Sheet AllSheetsInThisWorkbook (hidden)
A1: Расчетные листы | B1: Скрытые листы
A2: Инструкция | B2: AllSheetsInThisWorkbook
A3: Лог обновления | B3: et_union
A4: Титульный | B4: TEHSHEET
A5: стр 1-2 | B5: REESTR_ORG
A6: Расшифровка показателей | B6: REESTR_FILTERED
A7: Комментарии | B7: REESTR_MO
A8: Проверка | B8: modUpdTemplMain
B9: modfrmCheckUpdates
B10: modInfo
B11: modHyperlink
B12: modChange
B13: modPROV
B14: modTitleSheetHeaders
B15: modServiceModule
B16: modCommandButton
B17: modReestr
B18: modClassifierValidate
B19: modfrmReestr
B20: modfrmDateChoose
B21: modDblClick
B22: Паспорт
B23: modRegionSelectSub
B24: modThisWorkbook
B25: modReestrMO
B26: modSheetMain01
B27: modSheetMain02
B28: modSheetMain03
B29: modSheetMain04
B30: modSheetMain05

Sheet et_union (hidden)
A2: add_INCOME_CONSUMPTION_range
A7: add_GAINS_AND_LOSSES_range
A12: add_INDICATORS_range
A16: add_INDICATORS_range_2
H18: ( | J18: ) | K18: ( | M18: )
A21: COMS_ADD_RANGE

Sheet TEHSHEET (hidden)
A1: регион | B1: Логика | C1: Кварталы | D1: Года | E1: Единица измерения | F1: Месяц-текст | G1: Месяц-число | H1: День-число | J1: XML_ORG_LIST_TAG_NAMES
B2: да | C2: I квартал | D2: 2012 | E2: тыс.руб. | F2: январь | G2: 01 | H2: 01 | J2: NSRF
A3: Алтайский край | B3: нет | C3: I полугодие | D3: 2013 | E3: млн.руб. | F3: февраль | G3: 02 | H3: 02 | J3: MR_NAME
A4: Амурская область | C4: 9 месяцев | D4: 2014 | F4: март | G4: 03 | H4: 03 | J4: OKTMO_MR_NAME
A5: Архангельская область | C5: год | D5: 2015 | E5: Единица измерения для листа "Доходы-Расходы" | F5: апрель | G5: 04 | H5: 04 | J5: MO_NAME
A6: Астраханская область | B6: Выбранный регион | D6: 2016 | E6: руб. | F6: май | G6: 05 | H6: 05 | J6: OKTMO_NAME
A7: Белгородская область | B7: 0 | E7: тыс.руб. | F7: июнь | G7: 06 | H7: 06 | J7: ORG_NAME
A8: Брянская область | E8: млн.руб. | F8: июль | G8: 07 | H8: 07 | J8: INN_NAME
A9: Владимирская область | F9: август | G9: 08 | H9: 08 | J9: KPP_NAME
A10: Волгоградская область | F10: сентябрь | G10: 09 | H10: 09
A11: Вологодская область | F11: октябрь | G11: 10 | H11: 10 | J11: XML_MR_MO_OKTMO_LIST_TAG_NAMES
A12: Воронежская область | F12: ноябрь | G12: 11 | H12: 11 | J12: NSRF
A13: г.Байконур | F13: декабрь | G13: 12 | H13: 12 | J13: MR_NAME
A14: г. Москва | H14: 13 | J14: OKTMO_MR_NAME
A15: г.Санкт-Петербург | H15: 14 | J15: MO_NAME
A16: Еврейская автономная область | H16: 15 | J16: OKTMO_NAME
A17: Забайкальский край | H17: 16
A18: Ивановская область | H18: 17
A19: Иркутская область | H19: 18
A20: Кабардино-Балкарская республика | H20: 19
A21: Калининградская область | H21: 20
A22: Калужская область | H22: 21
A23: Камчатский край | H23: 22
A24: Карачаево-Черкесская республика | H24: 23
A25: Кемеровская область | H25: 24
A26: Кировская область | H26: 25
A27: Костромская область | H27: 26
A28: Краснодарский край | H28: 27
A29: Красноярский край | H29: 28
A30: Курганская область | H30: 29
A31: Курская область | H31: 30
A32: Ленинградская область | H32: 31
A33: Липецкая область
A34: Магаданская область
A35: Московская область
A36: Мурманская область
A37: Ненецкий автономный округ
A38: Нижегородская область
A39: Новгородская область
A40: Новосибирская область
A41: Омская область
A42: Оренбургская область
A43: Орловская область
A44: Пензенская область
A45: Пермский край
A46: Приморский край
A47: Псковская область
A48: Республика Адыгея
A49: Республика Алтай
A50: Республика Башкортостан
A51: Республика Бурятия
A52: Республика Дагестан
A53: Республика Ингушетия
A54: Республика Калмыкия
A55: Республика Карелия
A56: Республика Коми
A57: Республика Марий Эл
A58: Республика Мордовия
A59: Республика Саха (Якутия)
A60: Республика Северная Осетия-Алания
A61: Республика Татарстан
A62: Республика Тыва
A63: Республика Хакасия
A64: Ростовская область
A65: Рязанская область
A66: Самарская область
A67: Саратовская область
A68: Сахалинская область
A69: Свердловская область
A70: Смоленская область
A71: Ставропольский край
A72: Тамбовская область
A73: Тверская область
A74: Томская область
A75: Тульская область
A76: Тюменская область
A77: Удмуртская республика
A78: Ульяновская область
A79: Хабаровский край
A80: Ханты-Мансийский автономный округ
A81: Челябинская область
A82: Чеченская республика
A83: Чувашская республика
A84: Чукотский автономный округ
A85: Ямало-Ненецкий автономный округ
A86: Ярославская область

Sheet REESTR_ORG (hidden)
A1: № | B1: МР | C1: МО | D1: МО ОКТМО | E1: ОРГАНИЗАЦИЯ | F1: ИНН | G1: КПП | H1: ВИД ДЕЯТЕЛЬНОСТИ
A2: 1 | B2: Арбажский муниципальный район | C2: Арбажский муниципальный район | D2: 33602000 | E2: Администрация Верхотульского с/п | F2: 4301001862 | G2: 430101001
A3: 2 | B3: Арбажский муниципальный район | C3: Арбажский муниципальный район | D3: 33602000 | E3: Администрация МО Сорвижское сп | F3: 4301001887 | G3: 430101001
A4: 3 | B4: Арбажский муниципальный район | C4: Арбажский муниципальный район | D4: 33602000 | E4: ИП Семёновых Сергей Михайлович | F4: 430100141870 | G4: отсутствует
A5: 4 | B5: Арбажский муниципальный район | C5: Арбажский муниципальный район | D5: 33602000 | E5: ООО "Комфорт" | F5: 4301002295 | G5: 430101001
A6: 5 | B6: Арбажский муниципальный район | C6: Арбажский муниципальный район | D6: 33602000 | E6: СПК колхоз "Рассвет" | F6: 4301001502 | G6: 430101001
A7: 6 | B7: Арбажский муниципальный район | C7: Арбажский муниципальный район | D7: 33602000 | E7: ФГУП "РТРС" | F7: 7717127211 | G7: 771701001
A8: 7 | B8: Арбажский муниципальный район | C8: Арбажский муниципальный район | D8: 33602000 | E8: администрация МО Шембетское сельское поселение Арбажского района | F8: 4301001855 | G8: 430101001
A9: 8 | B9: Арбажский муниципальный район | C9: Арбажское | D9: 33602151 | E9: МРФ "Волга" ПАО "Ростелеком" | F9: 7707049388 | G9: 526043001
A10: 9 | B10: Арбажский муниципальный район | C10: Арбажское | D10: 33602151 | E10: ООО "Комфорт" | F10: 4301002295 | G10: 430101001
A11: 10 | B11: Арбажский муниципальный район | C11: Арбажское | D11: 33602151 | E11: ФГУП "Почта России" | F11: 7724261610 | G11: 997750001
A12: 11 | B12: Арбажский муниципальный район | C12: Арбажское | D12: 33602151 | E12: ФГУП "РТРС" | F12: 7717127211 | G12: 771701001
A13: 12 | B13: Арбажский муниципальный район | C13: Верхотульское | D13: 33602416 | E13: Администрация Верхотульского с/п | F13: 4301001862 | G13: 430101001
A14: 13 | B14: Арбажский муниципальный район | C14: Верхотульское | D14: 33602416 | E14: МРФ "Волга" ПАО "Ростелеком" | F14: 7707049388 | G14: 526043001
A15: 14 | B15: Арбажский муниципальный район | C15: Верхотульское | D15: 33602416 | E15: ФГУП "Почта России" | F15: 7724261610 | G15: 997750001
A16: 15 | B16: Арбажский муниципальный район | C16: Верхотульское | D16: 33602416 | E16: ФГУП "РТРС" | F16: 7717127211 | G16: 771701001
A17: 16 | B17: Арбажский муниципальный район | C17: Корминское | D17: 33602424 | E17: Администрация Корминского с/п | F17: 4301001870 | G17: 430101001
A18: 17 | B18: Арбажский муниципальный район | C18: Корминское | D18: 33602424 | E18: МРФ "Волга" ПАО "Ростелеком" | F18: 7707049388 | G18: 526043001
A19: 18 | B19: Арбажский муниципальный район | C19: Корминское | D19: 33602424 | E19: ФГУП "Почта России" | F19: 7724261610 | G19: 997750001
A20: 19 | B20: Арбажский муниципальный район | C20: Корминское | D20: 33602424 | E20: ФГУП "РТРС" | F20: 7717127211 | G20: 771701001
A21: 20 | B21: Арбажский муниципальный район | C21: Сорвижское | D21: 33602440 | E21: Администрация МО Сорвижское сп | F21: 4301001887 | G21: 430101001
A22: 21 | B22: Арбажский муниципальный район | C22: Сорвижское | D22: 33602440 | E22: ИП Семёновых Сергей Михайлович | F22: 430100141870 | G22: отсутствует
A23: 22 | B23: Арбажский муниципальный район | C23: Сорвижское | D23: 33602440 | E23: МРФ "Волга" ПАО "Ростелеком" | F23: 7707049388 | G23: 526043001
A24: 23 | B24: Арбажский муниципальный район | C24: Сорвижское | D24: 33602440 | E24: ФГУП "Почта России" | F24: 7724261610 | G24: 997750001
A25: 24 | B25: Арбажский муниципальный район | C25: Сорвижское | D25: 33602440 | E25: ФГУП "РТРС" | F25: 7717127211 | G25: 771701001
A26: 25 | B26: Арбажский муниципальный район | C26: Шембетское | D26: 33602452 | E26: МРФ "Волга" ПАО "Ростелеком" | F26: 7707049388 | G26: 526043001
A27: 26 | B27: Арбажский муниципальный район | C27: Шембетское | D27: 33602452 | E27: СПК колхоз "Рассвет" | F27: 4301001502 | G27: 430101001
A28: 27 | B28: Арбажский муниципальный район | C28: Шембетское | D28: 33602452 | E28: ФГУП "Почта России" | F28: 7724261610 | G28: 997750001
A29: 28 | B29: Арбажский муниципальный район | C29: Шембетское | D29: 33602452 | E29: ФГУП "РТРС" | F29: 7717127211 | G29: 771701001
A30: 29 | B30: Арбажский муниципальный район | C30: Шембетское | D30: 33602452 | E30: администрация МО Шембетское сельское поселение Арбажского района | F30: 4301001855 | G30: 430101001
A31: 30 | B31: Афанасьевский муниципальный район | C31: Афанасьевский муниципальный район | D31: 33603000 | E31: МКП ЖКХ "Лытка" | F31: 4302003904 | G31: 430201001
A32: 31 | B32: Афанасьевский муниципальный район | C32: Афанасьевский муниципальный район | D32: 33603000 | E32: МКП ЖКХ пгт. Афанасьево | F32: 4302003020 | G32: 430201001
A33: 32 | B33: Афанасьевский муниципальный район | C33: Афанасьевский муниципальный район | D33: 33603000 | E33: ФГУП "РТРС" | F33: 7717127211 | G33: 771701001
A34: 33 | B34: Афанасьевский муниципальный район | C34: Бисеровское | D34: 33603412 | E34: МКП ЖКХ пгт. Афанасьево | F34: 4302003020 | G34: 430201001
A35: 34 | B35: Афанасьевский муниципальный район | C35: Бисеровское | D35: 33603412 | E35: МРФ "Волга" ПАО "Ростелеком" | F35: 7707049388 | G35: 526043001
A36: 35 | B36: Афанасьевский муниципальный район | C36: Бисеровское | D36: 33603412 | E36: ФГУП "Почта России" | F36: 7724261610 | G36: 997750001
A37: 36 | B37: Афанасьевский муниципальный район | C37: Бисеровское | D37: 33603412 | E37: ФГУП "РТРС" | F37: 7717127211 | G37: 771701001
A38: 37 | B38: Афанасьевский муниципальный район | C38: Борское | D38: 33603416 | E38: ИП Вольхин А.Н. | F38: 430200269601 | G38: отсутствует
A39: 38 | B39: Афанасьевский муниципальный район | C39: Борское | D39: 33603416 | E39: МРФ "Волга" ПАО "Ростелеком" | F39: 7707049388 | G39: 526043001
A40: 39 | B40: Афанасьевский муниципальный район | C40: Борское | D40: 33603416 | E40: ФГУП "Почта России" | F40: 7724261610 | G40: 997750001
A41: 40 | B41: Афанасьевский муниципальный район | C41: Борское | D41: 33603416 | E41: ФГУП "РТРС" | F41: 7717127211 | G41: 771701001
A42: 41 | B42: Афанасьевский муниципальный район | C42: Гординское | D42: 33603428 | E42: ИП Харин И.Н. | F42: 430201162202 | G42: отсутствует
A43: 42 | B43: Афанасьевский муниципальный район | C43: Гординское | D43: 33603428 | E43: МРФ "Волга" ПАО "Ростелеком" | F43: 7707049388 | G43: 526043001
A44: 43 | B44: Афанасьевский муниципальный район | C44: Гординское | D44: 33603428 | E44: ФГУП "Почта России" | F44: 7724261610 | G44: 997750001
A45: 44 | B45: Афанасьевский муниципальный район | C45: Гординское | D45: 33603428 | E45: ФГУП "РТРС" | F45: 7717127211 | G45: 771701001
A46: 45 | B46: Афанасьевский муниципальный район | C46: Ичетовкинское | D46: 33603404 | E46: МКП ЖКХ пгт. Афанасьево | F46: 4302003020 | G46: 430201001
A47: 46 | B47: Афанасьевский муниципальный район | C47: Ичетовкинское | D47: 33603404 | E47: МРФ "Волга" ПАО "Ростелеком" | F47: 7707049388 | G47: 526043001
A48: 47 | B48: Афанасьевский муниципальный район | C48: Ичетовкинское | D48: 33603404 | E48: ФГУП "Почта России" | F48: 7724261610 | G48: 997750001
A49: 48 | B49: Афанасьевский муниципальный район | C49: Ичетовкинское | D49: 33603404 | E49: ФГУП "РТРС" | F49: 7717127211 | G49: 771701001
A50: 49 | B50: Афанасьевский муниципальный район | C50: Лыткинское | D50: 33603448 | E50: МКП ЖКХ "Лытка" | F50: 4302003904 | G50: 430201001
A51: 50 | B51: Афанасьевский муниципальный район | C51: Лыткинское | D51: 33603448 | E51: МРФ "Волга" ПАО "Ростелеком" | F51: 7707049388 | G51: 526043001
A52: 51 | B52: Афанасьевский муниципальный район | C52: Лыткинское | D52: 33603448 | E52: ФГУП "Почта России" | F52: 7724261610 | G52: 997750001
A53: 52 | B53: Афанасьевский муниципальный район | C53: Лыткинское | D53: 33603448 | E53: ФГУП "РТРС" | F53: 7717127211 | G53: 771701001
A54: 53 | B54: Афанасьевский муниципальный район | C54: Пашинское | D54: 33603456 | E54: МКП ЖКХ пгт. Афанасьево | F54: 4302003020 | G54: 430201001
A55: 54 | B55: Афанасьевский муниципальный район | C55: Пашинское | D55: 33603456 | E55: МРФ "Волга" ПАО "Ростелеком" | F55: 7707049388 | G55: 526043001
A56: 55 | B56: Афанасьевский муниципальный район | C56: Пашинское | D56: 33603456 | E56: ФГУП "Почта России" | F56: 7724261610 | G56: 997750001
A57: 56 | B57: Афанасьевский муниципальный район | C57: Пашинское | D57: 33603456 | E57: ФГУП "РТРС" | F57: 7717127211 | G57: 771701001
A58: 57 | B58: Афанасьевский муниципальный район | C58: Поселок Афанасьево | D58: 33603151 | E58: МКП ЖКХ пгт. Афанасьево | F58: 4302003020 | G58: 430201001
A59: 58 | B59: Афанасьевский муниципальный район | C59: Поселок Афанасьево | D59: 33603151 | E59: МРФ "Волга" ПАО "Ростелеком" | F59: 7707049388 | G59: 526043001
A60: 59 | B60: Афанасьевский муниципальный район | C60: Поселок Афанасьево | D60: 33603151 | E60: ООО "ЭкоПресс" | F60: 4345235931 | G60: 434501001
A61: 60 | B61: Афанасьевский муниципальный район | C61: Поселок Афанасьево | D61: 33603151 | E61: ФГУП "Почта России" | F61: 7724261610 | G61: 997750001
A62: 61 | B62: Афанасьевский муниципальный район | C62: Поселок Афанасьево | D62: 33603151 | E62: ФГУП "РТРС" | F62: 7717127211 | G62: 771701001
A63: 62 | B63: Белохолуницкий муниципальный район | C63: Белохолуницкий муниципальный район | D63: 33605000 | E63: ООО "Белохолуницкий машстройзавод" | F63: 4303004812 | G63: 430301001
A64: 63 | B64: Белохолуницкий муниципальный район | C64: Белохолуницкий муниципальный район | D64: 33605000 | E64: ООО "ВБТ-Холуница" | F64: 4345421487 | G64: 434501001
A65: 64 | B65: Белохолуницкий муниципальный район | C65: Белохолуницкий муниципальный район | D65: 33605000 | E65: ООО "Диалог" | F65: 4303004562 | G65: 430301001
A66: 65 | B66: Белохолуницкий муниципальный район | C66: Белохолуницкий муниципальный район | D66: 33605000 | E66: ООО "Жилсервис" | F66: 4303005132 | G66: 430301001
A67: 66 | B67: Белохолуницкий муниципальный район | C67: Белохолуницкий муниципальный район | D67: 33605000 | E67: ООО "Исток" | F67: 4303004330 | G67: 430301001
A68: 67 | B68: Белохолуницкий муниципальный район | C68: Белохолуницкий муниципальный район | D68: 33605000 | E68: ООО "Согласие" | F68: 4303004555 | G68: 430301001
A69: 68 | B69: Белохолуницкий муниципальный район | C69: Белохолуницкий муниципальный район | D69: 33605000 | E69: ООО "Союз" | F69: 4303005372 | G69: 430301001
A70: 69 | B70: Белохолуницкий муниципальный район | C70: Белохолуницкий муниципальный район | D70: 33605000 | E70: ООО "Теплострой" | F70: 4303006440 | G70: 430301001
A71: 70 | B71: Белохолуницкий муниципальный район | C71: Белохолуницкий муниципальный район | D71: 33605000 | E71: СПК "Быданово" | F71: 4303003992 | G71: 430301001
A72: 71 | B72: Белохолуницкий муниципальный район | C72: Белохолуницкий муниципальный район | D72: 33605000 | E72: СПК "Восход" | F72: 4303000991 | G72: 430301001
A73: 72 | B73: Белохолуницкий муниципальный район | C73: Белохолуницкий муниципальный район | D73: 33605000 | E73: ФГУП "РТРС" | F73: 7717127211 | G73: 771701001
A74: 73 | B74: Белохолуницкий муниципальный район | C74: Быдановское | D74: 33605408 | E74: МРФ "Волга" ПАО "Ростелеком" | F74: 7707049388 | G74: 526043001
A75: 74 | B75: Белохолуницкий муниципальный район | C75: Быдановское | D75: 33605408 | E75: ООО "Союз" | F75: 4303005372 | G75: 430301001
A76: 75 | B76: Белохолуницкий муниципальный район | C76: Быдановское | D76: 33605408 | E76: СПК "Быданово" | F76: 4303003992 | G76: 430301001
A77: 76 | B77: Белохолуницкий муниципальный район | C77: Быдановское | D77: 33605408 | E77: ФГУП "Почта России" | F77: 7724261610 | G77: 997750001
A78: 77 | B78: Белохолуницкий муниципальный район | C78: Быдановское | D78: 33605408 | E78: ФГУП "РТРС" | F78: 7717127211 | G78: 771701001
A79: 78 | B79: Белохолуницкий муниципальный район | C79: Всехсвятское | D79: 33605420 | E79: МРФ "Волга" ПАО "Ростелеком" | F79: 7707049388 | G79: 526043001
A80: 79 | B80: Белохолуницкий муниципальный район | C80: Всехсвятское | D80: 33605420 | E80: ООО "Союз" | F80: 4303005372 | G80: 430301001
A81: 80 | B81: Белохолуницкий муниципальный район | C81: Всехсвятское | D81: 33605420 | E81: ФГУП "Почта России" | F81: 7724261610 | G81: 997750001
A82: 81 | B82: Белохолуницкий муниципальный район | C82: Всехсвятское | D82: 33605420 | E82: ФГУП "РТРС" | F82: 7717127211 | G82: 771701001
A83: 82 | B83: Белохолуницкий муниципальный район | C83: Город Белая Холуница | D83: 33605101 | E83: МРФ "Волга" ПАО "Ростелеком" | F83: 7707049388 | G83: 526043001
A84: 83 | B84: Белохолуницкий муниципальный район | C84: Город Белая Холуница | D84: 33605101 | E84: МУП "Энергетик" | F84: 4303001811 | G84: 430301001
A85: 84 | B85: Белохолуницкий муниципальный район | C85: Город Белая Холуница | D85: 33605101 | E85: ООО "Белохолуницкий машстройзавод" | F85: 4303004812 | G85: 430301001
A86: 85 | B86: Белохолуницкий муниципальный район | C86: Город Белая Холуница | D86: 33605101 | E86: ООО "ВБТ-Холуница" | F86: 4345421487 | G86: 434501001
A87: 86 | B87: Белохолуницкий муниципальный район | C87: Город Белая Холуница | D87: 33605101 | E87: ООО "Исток" | F87: 4303004330 | G87: 430301001
A88: 87 | B88: Белохолуницкий муниципальный район | C88: Город Белая Холуница | D88: 33605101 | E88: ООО "Предприятие объединенных котельных" | F88: 4303004450 | G88: 430301001
A89: 88 | B89: Белохолуницкий муниципальный район | C89: Город Белая Холуница | D89: 33605101 | E89: ООО "Союз" | F89: 4303005372 | G89: 430301001
A90: 89 | B90: Белохолуницкий муниципальный район | C90: Город Белая Холуница | D90: 33605101 | E90: ООО "Станция биологической очистки-плюс" | F90: 4303001963 | G90: 430301001
A91: 90 | B91: Белохолуницкий муниципальный район | C91: Город Белая Холуница | D91: 33605101 | E91: ФГУП "Почта России" | F91: 7724261610 | G91: 997750001
A92: 91 | B92: Белохолуницкий муниципальный район | C92: Город Белая Холуница | D92: 33605101 | E92: ФГУП "РТРС" | F92: 7717127211 | G92: 771701001
A93: 92 | B93: Белохолуницкий муниципальный район | C93: Гуренское | D93: 33605422 | E93: МРФ "Волга" ПАО "Ростелеком" | F93: 7707049388 | G93: 526043001
A94: 93 | B94: Белохолуницкий муниципальный район | C94: Гуренское | D94: 33605422 | E94: ООО "Союз" | F94: 4303005372 | G94: 430301001
A95: 94 | B95: Белохолуницкий муниципальный район | C95: Гуренское | D95: 33605422 | E95: ФГУП "Почта России" | F95: 7724261610 | G95: 997750001
A96: 95 | B96: Белохолуницкий муниципальный район | C96: Гуренское | D96: 33605422 | E96: ФГУП "РТРС" | F96: 7717127211 | G96: 771701001
A97: 96 | B97: Белохолуницкий муниципальный район | C97: Дубровское | D97: 33605423 | E97: МРФ "Волга" ПАО "Ростелеком" | F97: 7707049388 | G97: 526043001
A98: 97 | B98: Белохолуницкий муниципальный район | C98: Дубровское | D98: 33605423 | E98: ООО "Диалог" | F98: 4303004562 | G98: 430301001
A99: 98 | B99: Белохолуницкий муниципальный район | C99: Дубровское | D99: 33605423 | E99: ФГУП "Почта России" | F99: 7724261610 | G99: 997750001
A100: 99 | B100: Белохолуницкий муниципальный район | C100: Дубровское | D100: 33605423 | E100: ФГУП "РТРС" | F100: 7717127211 | G100: 771701001
A101: 100 | B101: Белохолуницкий муниципальный район | C101: Климковское | D101: 33605428 | E101: КОГКУСО «Климковский психоневрологический интернат» | F101: 4303001297 | G101: 430301001
A102: 101 | B102: Белохолуницкий муниципальный район | C102: Климковское | D102: 33605428 | E102: МРФ "Волга" ПАО "Ростелеком" | F102: 7707049388 | G102: 526043001
A103: 102 | B103: Белохолуницкий муниципальный район | C103: Климковское | D103: 33605428 | E103: ООО "Жилсервис" | F103: 4303005132 | G103: 430301001
A104: 103 | B104: Белохолуницкий муниципальный район | C104: Климковское | D104: 33605428 | E104: ООО «Велес» | F104: 4303006249 | G104: 430301001
A105: 104 | B105: Белохолуницкий муниципальный район | C105: Климковское | D105: 33605428 | E105: ФГУП "Почта России" | F105: 7724261610 | G105: 997750001
A106: 105 | B106: Белохолуницкий муниципальный район | C106: Климковское | D106: 33605428 | E106: ФГУП "РТРС" | F106: 7717127211 | G106: 771701001
A107: 106 | B107: Белохолуницкий муниципальный район | C107: Подрезчихинское | D107: 33605436 | E107: МРФ "Волга" ПАО "Ростелеком" | F107: 7707049388 | G107: 526043001
A108: 107 | B108: Белохолуницкий муниципальный район | C108: Подрезчихинское | D108: 33605436 | E108: ООО "Согласие" | F108: 4303004555 | G108: 430301001
A109: 108 | B109: Белохолуницкий муниципальный район | C109: Подрезчихинское | D109: 33605436 | E109: ФГУП "Почта России" | F109: 7724261610 | G109: 997750001
A110: 109 | B110: Белохолуницкий муниципальный район | C110: Подрезчихинское | D110: 33605436 | E110: ФГУП "РТРС" | F110: 7717127211 | G110: 771701001
A111: 110 | B111: Белохолуницкий муниципальный район | C111: Поломское | D111: 33605440 | E111: МРФ "Волга" ПАО "Ростелеком" | F111: 7707049388 | G111: 526043001
A112: 111 | B112: Белохолуницкий муниципальный район | C112: Поломское | D112: 33605440 | E112: ООО "Союз" | F112: 4303005372 | G112: 430301001
A113: 112 | B113: Белохолуницкий муниципальный район | C113: Поломское | D113: 33605440 | E113: ООО "Теплострой" | F113: 4303006440 | G113: 430301001
A114: 113 | B114: Белохолуницкий муниципальный район | C114: Поломское | D114: 33605440 | E114: СПК "Восход" | F114: 4303000991 | G114: 430301001
A115: 114 | B115: Белохолуницкий муниципальный район | C115: Поломское | D115: 33605440 | E115: ФГУП "Почта России" | F115: 7724261610 | G115: 997750001
A116: 115 | B116: Белохолуницкий муниципальный район | C116: Поломское | D116: 33605440 | E116: ФГУП "РТРС" | F116: 7717127211 | G116: 771701001
A117: 116 | B117: Белохолуницкий муниципальный район | C117: Прокопьевское | D117: 33605444 | E117: МРФ "Волга" ПАО "Ростелеком" | F117: 7707049388 | G117: 526043001
A118: 117 | B118: Белохолуницкий муниципальный район | C118: Прокопьевское | D118: 33605444 | E118: ООО "Союз" | F118: 4303005372 | G118: 430301001
A119: 118 | B119: Белохолуницкий муниципальный район | C119: Прокопьевское | D119: 33605444 | E119: ФГУП "Почта России" | F119: 7724261610 | G119: 997750001
A120: 119 | B120: Белохолуницкий муниципальный район | C120: Прокопьевское | D120: 33605444 | E120: ФГУП "РТРС" | F120: 7717127211 | G120: 771701001
A121: 120 | B121: Белохолуницкий муниципальный район | C121: Ракаловское | D121: 33605448 | E121: МРФ "Волга" ПАО "Ростелеком" | F121: 7707049388 | G121: 526043001
A122: 121 | B122: Белохолуницкий муниципальный район | C122: Ракаловское | D122: 33605448 | E122: ФГУП "Почта России" | F122: 7724261610 | G122: 997750001
A123: 122 | B123: Белохолуницкий муниципальный район | C123: Ракаловское | D123: 33605448 | E123: ФГУП "РТРС" | F123: 7717127211 | G123: 771701001
A124: 123 | B124: Белохолуницкий муниципальный район | C124: Троицкое | D124: 33605456 | E124: МРФ "Волга" ПАО "Ростелеком" | F124: 7707049388 | G124: 526043001
A125: 124 | B125: Белохолуницкий муниципальный район | C125: Троицкое | D125: 33605456 | E125: ООО "Союз" | F125: 4303005372 | G125: 430301001
A126: 125 | B126: Белохолуницкий муниципальный район | C126: Троицкое | D126: 33605456 | E126: ФГУП "Почта России" | F126: 7724261610 | G126: 997750001
A127: 126 | B127: Белохолуницкий муниципальный район | C127: Троицкое | D127: 33605456 | E127: ФГУП "РТРС" | F127: 7717127211 | G127: 771701001
A128: 127 | B128: Богородский муниципальный район | C128: Богородский муниципальный район | D128: 33606000 | E128: Администрация Ошланского с/п | F128: 4304001677 | G128: 430401001
A129: 128 | B129: Богородский муниципальный район | C129: Богородский муниципальный район | D129: 33606000 | E129: МУП "ЖКХ" Богородского района | F129: 4304001934 | G129: 430401001
A130: 129 | B130: Богородский муниципальный район | C130: Богородский муниципальный район | D130: 33606000 | E130: ООО "Стимул" | F130: 4304001500 | G130: 430401001
A131: 130 | B131: Богородский муниципальный район | C131: Богородский муниципальный район | D131: 33606000 | E131: СПК (колхоз) "Красное знамя" | F131: 4314000369 | G131: 431401001
A132: 131 | B132: Богородский муниципальный район | C132: Богородский муниципальный район | D132: 33606000 | E132: ФГУП "РТРС" | F132: 7717127211 | G132: 771701001
A133: 132 | B133: Богородский муниципальный район | C133: Ошланское | D133: 33606412 | E133: Администрация Ошланского с/п | F133: 4304001677 | G133: 430401001
A134: 133 | B134: Богородский муниципальный район | C134: Ошланское | D134: 33606412 | E134: МРФ "Волга" ПАО "Ростелеком" | F134: 7707049388 | G134: 526043001
A135: 134 | B135: Богородский муниципальный район | C135: Ошланское | D135: 33606412 | E135: МУП "ЖКХ" Богородского района | F135: 4304001934 | G135: 430401001
A136: 135 | B136: Богородский муниципальный район | C136: Ошланское | D136: 33606412 | E136: СПК (колхоз) "Красное знамя" | F136: 4314000369 | G136: 431401001
A137: 136 | B137: Богородский муниципальный район | C137: Ошланское | D137: 33606412 | E137: ФГУП "Почта России" | F137: 7724261610 | G137: 997750001
A138: 137 | B138: Богородский муниципальный район | C138: Ошланское | D138: 33606412 | E138: ФГУП "РТРС" | F138: 7717127211 | G138: 771701001
A139: 138 | B139: Богородский муниципальный район | C139: Поселок Богородское | D139: 33606151 | E139: МРФ "Волга" ПАО "Ростелеком" | F139: 7707049388 | G139: 526043001
A140: 139 | B140: Богородский муниципальный район | C140: Поселок Богородское | D140: 33606151 | E140: ООО "Стимул" | F140: 4304001500 | G140: 430401001
A141: 140 | B141: Богородский муниципальный район | C141: Поселок Богородское | D141: 33606151 | E141: ФГУП "Почта России" | F141: 7724261610 | G141: 997750001
A142: 141 | B142: Богородский муниципальный район | C142: Поселок Богородское | D142: 33606151 | E142: ФГУП "РТРС" | F142: 7717127211 | G142: 771701001
A143: 142 | B143: Верхнекамский муниципальный район | C143: Верхнекамский муниципальный район | D143: 33607000 | E143: Администрация Светловского сельского поселения | F143: 4313005678 | G143: 431301001
A144: 143 | B144: Верхнекамский муниципальный район | C144: Верхнекамский муниципальный район | D144: 33607000 | E144: Горьковская дирекция по тепловодоснабжению структурное подразделение Центральной дирекции по тепловодоснабжению - филиала ОАО "РЖД" | F144: 7708503727 | G144: 525745041
A145: 144 | B145: Верхнекамский муниципальный район | C145: Верхнекамский муниципальный район | D145: 33607000 | E145: КОГУП "Облкоммунсервис" | F145: 4346041093 | G145: 434501001
A146: 145 | B146: Верхнекамский муниципальный район | C146: Верхнекамский муниципальный район | D146: 33607000 | E146: МУП "Животновод" | F146: 4305001609 | G146: 430501001
A147: 146 | B147: Верхнекамский муниципальный район | C147: Верхнекамский муниципальный район | D147: 33607000 | E147: МУП ЖКХ Светлополянск | F147: 4305005258 | G147: 430501001
A148: 147 | B148: Верхнекамский муниципальный район | C148: Верхнекамский муниципальный район | D148: 33607000 | E148: МУП ЖКХ п. Рудничный | F148: 4305004906 | G148: 430501001
A149: 148 | B149: Верхнекамский муниципальный район | C149: Верхнекамский муниципальный район | D149: 33607000 | E149: ООО "Жилищно-коммунальное хозяйство "Ресурс" п. Лесной" | F149: 4305005339 | G149: 430501001
A150: 149 | B150: Верхнекамский муниципальный район | C150: Верхнекамский муниципальный район | D150: 33607000 | E150: ООО "Кирсинская теплоснабжающая компания" | F150: 4345384041 | G150: 434501001
A151: 150 | B151: Верхнекамский муниципальный район | C151: Верхнекамский муниципальный район | D151: 33607000 | E151: ООО "Премьер" | F151: 4305002426 | G151: 430501001
A152: 151 | B152: Верхнекамский муниципальный район | C152: Верхнекамский муниципальный район | D152: 33607000 | E152: ООО «Ресурс» | F152: 4305002948 | G152: 430501001
A153: 152 | B153: Верхнекамский муниципальный район | C153: Верхнекамский муниципальный район | D153: 33607000 | E153: ФГУП "РТРС" | F153: 7717127211 | G153: 771701001
A154: 153 | B154: Верхнекамский муниципальный район | C154: Верхнекамский муниципальный район | D154: 33607000 | E154: ФКУ «ИК № 20 УФСИН по Кировской области» | F154: 4305002440 | G154: 430501001
A155: 154 | B155: Верхнекамский муниципальный район | C155: Верхнекамский муниципальный район | D155: 33607000 | E155: ФКУ БМТ и ВС УФСИН России по Кировской области | F155: 4305003211 | G155: 434501001
A156: 155 | B156: Верхнекамский муниципальный район | C156: Верхнекамский муниципальный район | D156: 33607000 | E156: Филиал ОАО "РЖД" ГЖД Кировский региональный центр дирекции по тепловодоснабжению | F156: 7708503727 | G156: 435731037
A157: 156 | B157: Верхнекамский муниципальный район | C157: Город Кирс | D157: 33607101 | E157: Горьковская дирекция по тепловодоснабжению структурное подразделение Центральной дирекции по тепловодоснабжению - филиала ОАО "РЖД" | F157: 7708503727 | G157: 525745041
A158: 157 | B158: Верхнекамский муниципальный район | C158: Город Кирс | D158: 33607101 | E158: ИП Одяков Сергей Петрович | F158: 430500093204 | G158: 430501001
A159: 158 | B159: Верхнекамский муниципальный район | C159: Город Кирс | D159: 33607101 | E159: МРФ "Волга" ПАО "Ростелеком" | F159: 7707049388 | G159: 526043001
A160: 159 | B160: Верхнекамский муниципальный район | C160: Город Кирс | D160: 33607101 | E160: ООО "Кирсинская теплоснабжающая компания" | F160: 4345384041 | G160: 434501001
A161: 160 | B161: Верхнекамский муниципальный район | C161: Город Кирс | D161: 33607101 | E161: ООО "Премьер" | F161: 4305002426 | G161: 430501001
A162: 161 | B162: Верхнекамский муниципальный район | C162: Город Кирс | D162: 33607101 | E162: ООО «Ресурс» | F162: 4305002948 | G162: 430501001
A163: 162 | B163: Верхнекамский муниципальный район | C163: Город Кирс | D163: 33607101 | E163: ФГУП "Почта России" | F163: 7724261610 | G163: 997750001
A164: 163 | B164: Верхнекамский муниципальный район | C164: Город Кирс | D164: 33607101 | E164: ФГУП "РТРС" | F164: 7717127211 | G164: 771701001
A165: 164 | B165: Верхнекамский муниципальный район | C165: Город Кирс | D165: 33607101 | E165: Филиал ОАО "РЖД" ГЖД Кировский региональный центр дирекции по тепловодоснабжению | F165: 7708503727 | G165: 435731037
A166: 165 | B166: Верхнекамский муниципальный район | C166: Кайское | D166: 33607420 | E166: МРФ "Волга" ПАО "Ростелеком" | F166: 7707049388 | G166: 526043001
A167: 166 | B167: Верхнекамский муниципальный район | C167: Кайское | D167: 33607420 | E167: МУП "Животновод" | F167: 4305001609 | G167: 430501001
A168: 167 | B168: Верхнекамский муниципальный район | C168: Кайское | D168: 33607420 | E168: ФГУП "Почта России" | F168: 7724261610 | G168: 997750001
A169: 168 | B169: Верхнекамский муниципальный район | C169: Кайское | D169: 33607420 | E169: ФГУП "РТРС" | F169: 7717127211 | G169: 771701001
A170: 169 | B170: Верхнекамский муниципальный район | C170: Камское | D170: 33607424 | E170: МРФ "Волга" ПАО "Ростелеком" | F170: 7707049388 | G170: 526043001
A171: 170 | B171: Верхнекамский муниципальный район | C171: Камское | D171: 33607424 | E171: ФГУП "Почта России" | F171: 7724261610 | G171: 997750001
A172: 171 | B172: Верхнекамский муниципальный район | C172: Камское | D172: 33607424 | E172: ФГУП "РТРС" | F172: 7717127211 | G172: 771701001
A173: 172 | B173: Верхнекамский муниципальный район | C173: Лойнское | D173: 33607428 | E173: МРФ "Волга" ПАО "Ростелеком" | F173: 7707049388 | G173: 526043001
A174: 173 | B174: Верхнекамский муниципальный район | C174: Лойнское | D174: 33607428 | E174: ФГУП "Почта России" | F174: 7724261610 | G174: 997750001
A175: 174 | B175: Верхнекамский муниципальный район | C175: Лойнское | D175: 33607428 | E175: ФГУП "РТРС" | F175: 7717127211 | G175: 771701001
A176: 175 | B176: Верхнекамский муниципальный район | C176: Поселок Лесной | D176: 33607154 | E176: МРФ "Волга" ПАО "Ростелеком" | F176: 7707049388 | G176: 526043001
A177: 176 | B177: Верхнекамский муниципальный район | C177: Поселок Лесной | D177: 33607154 | E177: ООО "Жилищно-коммунальное хозяйство "Ресурс" п. Лесной" | F177: 4305005339 | G177: 430501001
A178: 177 | B178: Верхнекамский муниципальный район | C178: Поселок Лесной | D178: 33607154 | E178: ФГУП "Почта России" | F178: 7724261610 | G178: 997750001
A179: 178 | B179: Верхнекамский муниципальный район | C179: Поселок Лесной | D179: 33607154 | E179: ФГУП "РТРС" | F179: 7717127211 | G179: 771701001
A180: 179 | B180: Верхнекамский муниципальный район | C180: Поселок Лесной | D180: 33607154 | E180: ФКУ «ИК № 20 УФСИН по Кировской области» | F180: 4305002440 | G180: 430501001
A181: 180 | B181: Верхнекамский муниципальный район | C181: Поселок Лесной | D181: 33607154 | E181: ФКУ БМТ и ВС УФСИН России по Кировской области | F181: 4305003211 | G181: 434501001
A182: 181 | B182: Верхнекамский муниципальный район | C182: Поселок Лесной | D182: 33607154 | E182: ФКУ ОИК-4 УФСИН России по Кировской области | F182: 4305004423 | G182: 430501001
A183: 182 | B183: Верхнекамский муниципальный район | C183: Поселок Рудничный | D183: 33607160 | E183: КОГУП "Облкоммунсервис" | F183: 4346041093 | G183: 434501001
A184: 183 | B184: Верхнекамский муниципальный район | C184: Поселок Рудничный | D184: 33607160 | E184: МРФ "Волга" ПАО "Ростелеком" | F184: 7707049388 | G184: 526043001
A185: 184 | B185: Верхнекамский муниципальный район | C185: Поселок Рудничный | D185: 33607160 | E185: МУП ЖКХ п. Рудничный | F185: 4305004906 | G185: 430501001
A186: 185 | B186: Верхнекамский муниципальный район | C186: Поселок Рудничный | D186: 33607160 | E186: ФГУП "Почта России" | F186: 7724261610 | G186: 997750001
A187: 186 | B187: Верхнекамский муниципальный район | C187: Поселок Рудничный | D187: 33607160 | E187: ФГУП "РТРС" | F187: 7717127211 | G187: 771701001
A188: 187 | B188: Верхнекамский муниципальный район | C188: Поселок Рудничный | D188: 33607160 | E188: ФКУ БМТ и ВС УФСИН России по Кировской области | F188: 4305003211 | G188: 434501001
A189: 188 | B189: Верхнекамский муниципальный район | C189: Поселок Светлополянск | D189: 33607162 | E189: Администрация Светловского сельского поселения | F189: 4313005678 | G189: 431301001
A190: 189 | B190: Верхнекамский муниципальный район | C190: Поселок Светлополянск | D190: 33607162 | E190: КОГУП "Облкоммунсервис" | F190: 4346041093 | G190: 434501001
A191: 190 | B191: Верхнекамский муниципальный район | C191: Поселок Светлополянск | D191: 33607162 | E191: МРФ "Волга" ПАО "Ростелеком" | F191: 7707049388 | G191: 526043001
A192: 191 | B192: Верхнекамский муниципальный район | C192: Поселок Светлополянск | D192: 33607162 | E192: МУП ЖКХ Светлополянск | F192: 4305005258 | G192: 430501001
A193: 192 | B193: Верхнекамский муниципальный район | C193: Поселок Светлополянск | D193: 33607162 | E193: ФГУП "Почта России" | F193: 7724261610 | G193: 997750001
A194: 193 | B194: Верхнекамский муниципальный район | C194: Поселок Светлополянск | D194: 33607162 | E194: ФГУП "РТРС" | F194: 7717127211 | G194: 771701001
A195: 194 | B195: Верхнекамский муниципальный район | C195: Созимское | D195: 33607434 | E195: МРФ "Волга" ПАО "Ростелеком" | F195: 7707049388 | G195: 526043001
A196: 195 | B196: Верхнекамский муниципальный район | C196: Созимское | D196: 33607434 | E196: ООО "Жилищно-коммунальное хозяйство "Ресурс" п. Лесной" | F196: 4305005339 | G196: 430501001
A197: 196 | B197: Верхнекамский муниципальный район | C197: Созимское | D197: 33607434 | E197: ФГУП "Почта России" | F197: 7724261610 | G197: 997750001
A198: 197 | B198: Верхнекамский муниципальный район | C198: Созимское | D198: 33607434 | E198: ФГУП "РТРС" | F198: 7717127211 | G198: 771701001
A199: 198 | B199: Верхнекамский муниципальный район | C199: Созимское | D199: 33607434 | E199: ФКУ БМТ и ВС УФСИН России по Кировской области | F199: 4305003211 | G199: 434501001
A200: 199 | B200: Верхнекамский муниципальный район | C200: Чусовского | D200: 33607436 | E200: МРФ "Волга" ПАО "Ростелеком" | F200: 7707049388 | G200: 526043001
... 1980 more rows

Sheet REESTR_FILTERED (hidden)
A1: № | B1: МР | C1: МО | D1: МО ОКТМО | E1: ОРГАНИЗАЦИЯ | F1: ИНН | G1: КПП | H1: ВИД ДЕЯТЕЛЬНОСТИ
A2: 1 | B2: Вятские Поляны | C2: Вятские Поляны | D2: 33704000 | E2: ООО Водоотведение | F2: 4307017925 | G2: 430701001

Sheet REESTR_MO (hidden)
A1: МР | B1: МО | C1: МО_ОКТМО | D1: МР | E1: ИМЯ ДИАПАЗОНА
A2: Арбажский муниципальный район | B2: Арбажский муниципальный район | C2: 33602000 | D2: Арбажский муниципальный район | E2: MO_LIST_2
A3: Арбажский муниципальный район | B3: Арбажское | C3: 33602151 | D3: Афанасьевский муниципальный район | E3: MO_LIST_3
A4: Арбажский муниципальный район | B4: Верхотульское | C4: 33602416 | D4: Белохолуницкий муниципальный район | E4: MO_LIST_4
A5: Арбажский муниципальный район | B5: Корминское | C5: 33602424 | D5: Богородский муниципальный район | E5: MO_LIST_5
A6: Арбажский муниципальный район | B6: Сорвижское | C6: 33602440 | D6: Верхнекамский муниципальный район | E6: MO_LIST_6
A7: Арбажский муниципальный район | B7: Шембетское | C7: 33602452 | D7: Верхошижемский муниципальный район | E7: MO_LIST_7
A8: Афанасьевский муниципальный район | B8: Афанасьевский муниципальный район | C8: 33603000 | D8: Вятские Поляны | E8: MO_LIST_8
A9: Афанасьевский муниципальный район | B9: Бисеровское | C9: 33603412 | D9: Вятскополянский муниципальный район | E9: MO_LIST_9
A10: Афанасьевский муниципальный район | B10: Борское | C10: 33603416 | D10: Даровской муниципальный район | E10: MO_LIST_10
A11: Афанасьевский муниципальный район | B11: Гординское | C11: 33603428 | D11: ЗАТО Первомайский | E11: MO_LIST_11
A12: Афанасьевский муниципальный район | B12: Ичетовкинское | C12: 33603404 | D12: Зуевский муниципальный район | E12: MO_LIST_12
A13: Афанасьевский муниципальный район | B13: Лыткинское | C13: 33603448 | D13: Кикнурский муниципальный район | E13: MO_LIST_13
A14: Афанасьевский муниципальный район | B14: Пашинское | C14: 33603456 | D14: Кильмезский муниципальный район | E14: MO_LIST_14
A15: Афанасьевский муниципальный район | B15: Поселок Афанасьево | C15: 33603151 | D15: Киров | E15: MO_LIST_15
A16: Белохолуницкий муниципальный район | B16: Белохолуницкий муниципальный район | C16: 33605000 | D16: Кирово-Чепецк | E16: MO_LIST_16
A17: Белохолуницкий муниципальный район | B17: Быдановское | C17: 33605408 | D17: Кирово-Чепецкий муниципальный район | E17: MO_LIST_17
A18: Белохолуницкий муниципальный район | B18: Всехсвятское | C18: 33605420 | D18: Котельнич | E18: MO_LIST_18
A19: Белохолуницкий муниципальный район | B19: Город Белая Холуница | C19: 33605101 | D19: Котельничский муниципальный район | E19: MO_LIST_19
A20: Белохолуницкий муниципальный район | B20: Гуренское | C20: 33605422 | D20: Куменский муниципальный район | E20: MO_LIST_20
A21: Белохолуницкий муниципальный район | B21: Дубровское | C21: 33605423 | D21: Лебяжский муниципальный район | E21: MO_LIST_21
A22: Белохолуницкий муниципальный район | B22: Климковское | C22: 33605428 | D22: Лузский муниципальный район | E22: MO_LIST_22
A23: Белохолуницкий муниципальный район | B23: Подрезчихинское | C23: 33605436 | D23: Малмыжский муниципальный район | E23: MO_LIST_23
A24: Белохолуницкий муниципальный район | B24: Поломское | C24: 33605440 | D24: Мурашинский муниципальный район | E24: MO_LIST_24
A25: Белохолуницкий муниципальный район | B25: Прокопьевское | C25: 33605444 | D25: Нагорский муниципальный район | E25: MO_LIST_25
A26: Белохолуницкий муниципальный район | B26: Ракаловское | C26: 33605448 | D26: Немский муниципальный район | E26: MO_LIST_26
A27: Белохолуницкий муниципальный район | B27: Троицкое | C27: 33605456 | D27: Нолинский муниципальный район | E27: MO_LIST_27
A28: Богородский муниципальный район | B28: Богородский муниципальный район | C28: 33606000 | D28: Омутнинский муниципальный район | E28: MO_LIST_28
A29: Богородский муниципальный район | B29: Ошланское | C29: 33606412 | D29: Опаринский муниципальный район | E29: MO_LIST_29
A30: Богородский муниципальный район | B30: Поселок Богородское | C30: 33606151 | D30: Оричевский муниципальный район | E30: MO_LIST_30
A31: Верхнекамский муниципальный район | B31: Верхнекамский муниципальный район | C31: 33607000 | D31: Орловский муниципальный район | E31: MO_LIST_31
A32: Верхнекамский муниципальный район | B32: Город Кирс | C32: 33607101 | D32: Пижанский муниципальный район | E32: MO_LIST_32
A33: Верхнекамский муниципальный район | B33: Кайское | C33: 33607420 | D33: Подосиновский муниципальный район | E33: MO_LIST_33
A34: Верхнекамский муниципальный район | B34: Камское | C34: 33607424 | D34: Санчурский муниципальный район | E34: MO_LIST_34
A35: Верхнекамский муниципальный район | B35: Лойнское | C35: 33607428 | D35: Свечинский муниципальный район | E35: MO_LIST_35
A36: Верхнекамский муниципальный район | B36: Поселок Лесной | C36: 33607154 | D36: Слободской | E36: MO_LIST_36
A37: Верхнекамский муниципальный район | B37: Поселок Рудничный | C37: 33607160 | D37: Слободской муниципальный район | E37: MO_LIST_37
A38: Верхнекамский муниципальный район | B38: Поселок Светлополянск | C38: 33607162 | D38: Советский муниципальный район | E38: MO_LIST_38
A39: Верхнекамский муниципальный район | B39: Созимское | C39: 33607434 | D39: Сунский муниципальный район | E39: MO_LIST_39
A40: Верхнекамский муниципальный район | B40: Чусовского | C40: 33607436 | D40: Тужинский муниципальный район | E40: MO_LIST_40
A41: Верхошижемский муниципальный район | B41: Верхошижемский муниципальный район | C41: 33608000 | D41: Унинский муниципальный район | E41: MO_LIST_41
A42: Верхошижемский муниципальный район | B42: Зоновское | C42: 33608416 | D42: Уржумский муниципальный район | E42: MO_LIST_42
A43: Верхошижемский муниципальный район | B43: Калачиговское | C43: 33608418 | D43: Фаленский муниципальный район | E43: MO_LIST_43
A44: Верхошижемский муниципальный район | B44: Косинское | C44: 33608420 | D44: Шабалинский муниципальный район | E44: MO_LIST_44
A45: Верхошижемский муниципальный район | B45: Мякишинское | C45: 33608424 | D45: Юрьянский муниципальный район | E45: MO_LIST_45
A46: Верхошижемский муниципальный район | B46: Поселок Верхошижемье | C46: 33608151 | D46: Яранский муниципальный район | E46: MO_LIST_46
A47: Верхошижемский муниципальный район | B47: Пунгинское | C47: 33608428
A48: Верхошижемский муниципальный район | B48: Среднеивкинское | C48: 33608432
A49: Верхошижемский муниципальный район | B49: Сырдинское | C49: 33608436
A50: Верхошижемский муниципальный район | B50: Угорское | C50: 33608440
A51: Вятские Поляны | B51: Вятские Поляны | C51: 33704000
A52: Вятскополянский муниципальный район | B52: Вятскополянский муниципальный район | C52: 33610000
A53: Вятскополянский муниципальный район | B53: Город Сосновка | C53: 33610104
A54: Вятскополянский муниципальный район | B54: Гремячевское | C54: 33610404
A55: Вятскополянский муниципальный район | B55: Ершовское | C55: 33610406
A56: Вятскополянский муниципальный район | B56: Кулыжское | C56: 33610408
A57: Вятскополянский муниципальный район | B57: Новобурецкое | C57: 33610410
A58: Вятскополянский муниципальный район | B58: Омгинское | C58: 33610412
A59: Вятскополянский муниципальный район | B59: Поселок Красная Поляна | C59: 33610154
A60: Вятскополянский муниципальный район | B60: Слудское | C60: 33610416
A61: Вятскополянский муниципальный район | B61: Среднетойменское | C61: 33610420
A62: Вятскополянский муниципальный район | B62: Среднешунское | C62: 33610424
A63: Вятскополянский муниципальный район | B63: Старопинигерское | C63: 33610426
A64: Вятскополянский муниципальный район | B64: Усть-Люгинское | C64: 33610428
A65: Вятскополянский муниципальный район | B65: Чекашевское | C65: 33610432
A66: Даровской муниципальный район | B66: Верховонданское | C66: 33612412
A67: Даровской муниципальный район | B67: Вонданское | C67: 33612416
A68: Даровской муниципальный район | B68: Даровской муниципальный район | C68: 33612000
A69: Даровской муниципальный район | B69: Кобрское | C69: 33612432
A70: Даровской муниципальный район | B70: Лузянское | C70: 33612440
A71: Даровской муниципальный район | B71: Пиксурское | C71: 33612408
A72: Даровской муниципальный район | B72: Поселок Даровской | C72: 33612151
A73: ЗАТО Первомайский | B73: ЗАТО Первомайский | C73: 33787000
A74: Зуевский муниципальный район | B74: Город Зуевка | C74: 33614101
A75: Зуевский муниципальный район | B75: Зуевский муниципальный район | C75: 33614000
A76: Зуевский муниципальный район | B76: Зуевское | C76: 33614408
A77: Зуевский муниципальный район | B77: Кордяжское | C77: 33614412
A78: Зуевский муниципальный район | B78: Косинское | C78: 33614458
A79: Зуевский муниципальный район | B79: Мухинское | C79: 33614424
A80: Зуевский муниципальный район | B80: Октябрьское | C80: 33614428
A81: Зуевский муниципальный район | B81: Сезеневское | C81: 33614436
A82: Зуевский муниципальный район | B82: Семушинское | C82: 33614442
A83: Зуевский муниципальный район | B83: Соколовское | C83: 33614443
A84: Зуевский муниципальный район | B84: Сунское | C84: 33614448
A85: Зуевский муниципальный район | B85: Чепецкое | C85: 33614453
A86: Кикнурский муниципальный район | B86: Кикнурский муниципальный район | C86: 33616000
A87: Кикнурский муниципальный район | B87: Кикнурское | C87: 33616438
A88: Кикнурский муниципальный район | B88: Поселок Кикнур | C88: 33616151
A89: Кильмезский муниципальный район | B89: Большепорекское | C89: 33617440
A90: Кильмезский муниципальный район | B90: Бурашевское | C90: 33617404
A91: Кильмезский муниципальный район | B91: Вихаревское | C91: 33617408
A92: Кильмезский муниципальный район | B92: Дамаскинское | C92: 33617412
A93: Кильмезский муниципальный район | B93: Зимнякское | C93: 33617418
A94: Кильмезский муниципальный район | B94: Кильмезский муниципальный район | C94: 33617000
A95: Кильмезский муниципальный район | B95: Малокильмезское | C95: 33617424
A96: Кильмезский муниципальный район | B96: Моторское | C96: 33617428
A97: Кильмезский муниципальный район | B97: Паскинское | C97: 33617436
A98: Кильмезский муниципальный район | B98: Поселок Кильмезь | C98: 33617151
A99: Кильмезский муниципальный район | B99: Рыбно-Ватажское | C99: 33617444
A100: Кильмезский муниципальный район | B100: Селинское | C100: 33617448
A101: Кильмезский муниципальный район | B101: Чернушское | C101: 33617456
A102: Киров | B102: Киров | C102: 33701000
A103: Кирово-Чепецк | B103: Кирово-Чепецк | C103: 33707000
A104: Кирово-Чепецкий муниципальный район | B104: Бурмакинское | C104: 33618408
A105: Кирово-Чепецкий муниципальный район | B105: Кирово-Чепецкий муниципальный район | C105: 33618000
A106: Кирово-Чепецкий муниципальный район | B106: Коныпское | C106: 33618418
A107: Кирово-Чепецкий муниципальный район | B107: Кстининское | C107: 33618420
A108: Кирово-Чепецкий муниципальный район | B108: Мокрецовское | C108: 33618424
A109: Кирово-Чепецкий муниципальный район | B109: Пасеговское | C109: 33618428
A110: Кирово-Чепецкий муниципальный район | B110: Поломское | C110: 33618432
A111: Кирово-Чепецкий муниципальный район | B111: Просницкое | C111: 33618412
A112: Кирово-Чепецкий муниципальный район | B112: Селезеневское | C112: 33618434
A113: Кирово-Чепецкий муниципальный район | B113: Фатеевское | C113: 33618436
A114: Кирово-Чепецкий муниципальный район | B114: Федяковское | C114: 33618442
A115: Кирово-Чепецкий муниципальный район | B115: Филипповское | C115: 33618444
A116: Кирово-Чепецкий муниципальный район | B116: Чепецкое | C116: 33618448
A117: Кирово-Чепецкий муниципальный район | B117: Чувашевское | C117: 33618452
A118: Котельнич | B118: Котельнич | C118: 33710000
A119: Котельничский муниципальный район | B119: Александровское | C119: 33619464
A120: Котельничский муниципальный район | B120: Биртяевское | C120: 33619404
A121: Котельничский муниципальный район | B121: Вишкильское | C121: 33619432
A122: Котельничский муниципальный район | B122: Ежихинское | C122: 33619416
A123: Котельничский муниципальный район | B123: Зайцевское | C123: 33619428
A124: Котельничский муниципальный район | B124: Карпушинское | C124: 33619440
A125: Котельничский муниципальный район | B125: Комсомольское | C125: 33619452
A126: Котельничский муниципальный район | B126: Котельничский муниципальный район | C126: 33619000
A127: Котельничский муниципальный район | B127: Котельничское | C127: 33619456
A128: Котельничский муниципальный район | B128: Красногорское | C128: 33619488
A129: Котельничский муниципальный район | B129: Макарьевское | C129: 33619460
A130: Котельничский муниципальный район | B130: Молотниковское | C130: 33619436
A131: Котельничский муниципальный район | B131: Морозовское | C131: 33619468
A132: Котельничский муниципальный район | B132: Покровское | C132: 33619480
A133: Котельничский муниципальный район | B133: Родичевское | C133: 33619424
A134: Котельничский муниципальный район | B134: Светловское | C134: 33619481
A135: Котельничский муниципальный район | B135: Спасское | C135: 33619484
A136: Котельничский муниципальный район | B136: Сретенское | C136: 33619486
A137: Котельничский муниципальный район | B137: Чистопольское | C137: 33619490
A138: Котельничский муниципальный район | B138: Юбилейное | C138: 33619448
A139: Котельничский муниципальный район | B139: Юрьевское | C139: 33619494
A140: Куменский муниципальный район | B140: Березниковское | C140: 33620408
A141: Куменский муниципальный район | B141: Большеперелазское | C141: 33620440
A142: Куменский муниципальный район | B142: Верхобыстрицкое | C142: 33620416
A143: Куменский муниципальный район | B143: Вичевское | C143: 33620420
A144: Куменский муниципальный район | B144: Вожгальское | C144: 33620421
A145: Куменский муниципальный район | B145: Кумёнское | C145: 33620428
A146: Куменский муниципальный район | B146: Куменский муниципальный район | C146: 33620000
A147: Куменский муниципальный район | B147: Поселок Кумены | C147: 33620151
A148: Куменский муниципальный район | B148: Поселок Нижнеивкино | C148: 33620154
A149: Куменский муниципальный район | B149: Речное | C149: 33620444
A150: Лебяжский муниципальный район | B150: Ветошкинское | C150: 33621412
A151: Лебяжский муниципальный район | B151: Лажское | C151: 33621444
A152: Лебяжский муниципальный район | B152: Лебяжский муниципальный район | C152: 33621000
A153: Лебяжский муниципальный район | B153: Михеевское | C153: 33621404
A154: Лебяжский муниципальный район | B154: Поселок Лебяжье | C154: 33621151
A155: Лузский муниципальный район | B155: Город Луза | C155: 33622101
A156: Лузский муниципальный район | B156: Лузский муниципальный район | C156: 33622000
A157: Лузский муниципальный район | B157: Папуловское | C157: 33622428
A158: Лузский муниципальный район | B158: Поселок Лальск | C158: 33622154
A159: Малмыжский муниципальный район | B159: Аджимское | C159: 33623404
A160: Малмыжский муниципальный район | B160: Арыкское | C160: 33623408
A161: Малмыжский муниципальный район | B161: Большекитякское | C161: 33623412
A162: Малмыжский муниципальный район | B162: Город Малмыж | C162: 33623101
A163: Малмыжский муниципальный район | B163: Каксинвайское | C163: 33623424
A164: Малмыжский муниципальный район | B164: Калининское | C164: 33623428
A165: Малмыжский муниципальный район | B165: Константиновское | C165: 33623432
A166: Малмыжский муниципальный район | B166: Малмыжский муниципальный район | C166: 33623000
A167: Малмыжский муниципальный район | B167: Мари-Малмыжское | C167: 33623436
A168: Малмыжский муниципальный район | B168: Мелетское | C168: 33623440
A169: Малмыжский муниципальный район | B169: Новосмаильское | C169: 33623444
A170: Малмыжский муниципальный район | B170: Плотбищенское | C170: 33623448
A171: Малмыжский муниципальный район | B171: Преображенское | C171: 33623452
A172: Малмыжский муниципальный район | B172: Ральниковское | C172: 33623456
A173: Малмыжский муниципальный район | B173: Рожкинское | C173: 33623460
A174: Малмыжский муниципальный район | B174: Савальское | C174: 33623464
A175: Малмыжский муниципальный район | B175: Староирюкское | C175: 33623470
A176: Малмыжский муниципальный район | B176: Старотушкинское | C176: 33623472
A177: Малмыжский муниципальный район | B177: Тат-Верх-Гоньбинское | C177: 33623476
A178: Мурашинский муниципальный район | B178: Город Мураши | C178: 33624101
A179: Мурашинский муниципальный район | B179: Мурашинский муниципальный район | C179: 33624000
A180: Мурашинский муниципальный район | B180: Мурашинское | C180: 33624435
A181: Нагорский муниципальный район | B181: Кобринское | C181: 33625416
A182: Нагорский муниципальный район | B182: Метелевское | C182: 33625424
A183: Нагорский муниципальный район | B183: Мулинское | C183: 33625428
A184: Нагорский муниципальный район | B184: Нагорский муниципальный район | C184: 33625000
A185: Нагорский муниципальный район | B185: Поселок Нагорск | C185: 33625151
A186: Нагорский муниципальный район | B186: Синегорское | C186: 33625444
A187: Нагорский муниципальный район | B187: Чеглаковское | C187: 33625432
A188: Немский муниципальный район | B188: Архангельское | C188: 33626404
A189: Немский муниципальный район | B189: Ильинское | C189: 33626412
A190: Немский муниципальный район | B190: Немский муниципальный район | C190: 33626000
A191: Немский муниципальный район | B191: Немское городское поселение | C191: 33626151
A192: Немский муниципальный район | B192: Немское сельское поселение | C192: 33626424
A193: Нолинский муниципальный район | B193: Город Нолинск | C193: 33627101
A194: Нолинский муниципальный район | B194: Красноярское | C194: 33627418
A195: Нолинский муниципальный район | B195: Кырчанское | C195: 33627420
A196: Нолинский муниципальный район | B196: Лудянское | C196: 33627428
A197: Нолинский муниципальный район | B197: Медведское | C197: 33627430
A198: Нолинский муниципальный район | B198: Нолинский муниципальный район | C198: 33627000
A199: Нолинский муниципальный район | B199: Перевозское | C199: 33627436
A200: Нолинский муниципальный район | B200: Поселок Аркуль | C200: 33627152
... 165 more rows

Sheet modUpdTemplMain (hidden)

Sheet modfrmCheckUpdates (hidden)

Sheet modInfo (hidden)
B2: Нажмите кнопку "Выбрать организацию из списка" для автоматического ввода реквизитов организации
B3: Нет доступных обновлений, версия отчёта актуальна
B4: Нажмите кнопку "Обновить реестр МО" если реестр не загружен или не актуален

Sheet modHyperlink (hidden)

Sheet modChange (hidden)

Sheet modPROV (hidden)

Sheet modTitleSheetHeaders (hidden)

Sheet modServiceModule (hidden)

Sheet modCommandButton (hidden)

Sheet modReestr (hidden)

Sheet modClassifierValidate (hidden)

Sheet modfrmReestr (hidden)

Sheet modfrmDateChoose (hidden)

Sheet modDblClick (hidden)

Sheet Паспорт (hidden)
AV1: Код диапазона: | AW1: Название диапазона: | AX1: Сфера регулирования: | AY1: Подсфера: | AZ1: Тип информации в шаблоне: | BA1: Состояние шаблона: | BB1: Периодичность: | BC1: "Геотип" шаблона: | BD1: Тип шаблона: | BE1: Заказчик:
AV2: ps_sr | AW2: Сфера регулирования: | AX2: Не определено | AY2: Не определено | AZ2: Не определено | BA2: Не определено | BB2: Не определено | BC2: Не определено | BD2: Не определено | BE2: Не определено
AV3: ps_ti | AW3: Тип информации в шаблоне: | AX3: NETS | AY3: водоотведение - очистка | AZ3: Статистический | BA3: Проект | BB3: Единовременный | BC3: Региональный шаблон | BD3: Атомарный | BE3: РЭК
D4: Паспорт к шаблону | AV4: ps_ssh | AW4: Состояние шаблона: | AX4: Аэропорты | AY4: водоотведение - передача | AZ4: Расчетный | BA4: Утвержден | BB4: Ежемесячный | BC4: Муниципальный шаблон | BD4: Сводный | BE4: ФСТ
AV5: ps_p | AW5: Периодичность: | AX5: Газ | AY5: водоотведение - прием | AZ5: Обосновывающие материалы | BB5: Ежеквартальный | BC5: Шаблон от организации | BE5: Экспертная организация
D6: 1. Общие сведения | AV6: ps_geo | AW6: "Геотип" шаблона: | AX6: Железные дороги | AY6: водоснабжение - очистка | BB6: Ежегодный
D7: 1.1 | E7: Код | AV7: ps_tsh | AW7: Тип шаблона: | AX7: ЖКХ | AY7: водоснабжение - передача
D8: 1.2 | E8: Краткое наименование | AV8: ps_psr | AW8: Подсфера: | AX8: Медицина | AY8: водоснабжение - подъем
D9: 1.3 | E9: Полное наименование | AV9: ps_z | AW9: Заказчик: | AX9: Порты | AY9: выработка ТС
D10: 1.4 | E10: Сфера регулирования | AX10: Связь | AY10: выработка ТС в режиме комбинированной выработки
D11: 1.5 | E11: Подсфера | AX11: Транспорт | AY11: выработка электрической энергии
D12: 1.6 | E12: Состояние шаблона (Утвержден/Проект) | AX12: Электроэнергетика | AY12: выработка+передача+сбыт ТС
D13: 1.7 | E13: Заказчик | AY13: передача ТС
D14: 1.8 | E14: Отчитывается | AY14: передача ЭЭ
D15: 1.9 | E15: Тип шаблона | G15: Если шаблон сводный, необходимо указать код атомарного шаблона для него: | AY15: сбыт ТС
D16: 1.10 | E16: Текущая версия | AY16: сбыт ЭЭ
AY17: ТБО
D18: 2. Организационные
D19: 2.1 | E19: Тип информации в шаблоне
D20: 2.2 | E20: Ответственный регулятор (от заказчика)
D21: 2.3 | E21: Ответственный специалист (от СМА)
D22: 2.4 | E22: Ответственный программист (от СМА)
D23: 2.5 | E23: Ответственные за сбор данных (от СМА)
D24: 2.6 | E24: Ответственные за сбор данных (от заказчика)
D26: 3. Законодательство (методики, приказы, постановления ...)
C27: first | D27: 3.1 | E27: Документ1
C28: end | D28: Добавить документ
D30: 4. Периодичность
D31: 4.1 | E31: Периодичность
E32: Мониторинги(прошедшие и плановые) | F32: Дата начала | G32: Дата окончания | H32: Согласно (приказ, постановление, письмо)
C33: first | D33: 4.2.1 | E33: Мониторинг1
C34: end | D34: Добавить мониторинг
D36: 5. Состав шаблона
E37: Лист | F37: Последняя дата изменений эскиза | G37: Состояние листа | H37: Наименование витрины для листа | I37: Комментарии
C38: first | D38: 5.1.1
C39: Удалить | D39: 5.1.2
C40: Удалить | D40: 5.1.3
C41: Удалить | D41: 5.1.4
C42: Удалить | D42: 5.1.5
C43: Удалить | D43: 5.1.6
C44: Удалить | D44: 5.1.7
C45: Удалить | D45: 5.1.8
C46: Удалить | D46: 5.1.9
C47: Удалить | D47: 5.1.10
C48: Удалить | D48: 5.1.11
C49: Удалить | D49: 5.1.12
C50: Удалить | D50: 5.1.13
C51: Удалить | D51: 5.1.14
C52: Удалить | D52: 5.1.15
C53: Удалить | D53: 5.1.16
C54: Удалить | D54: 5.1.17
C55: end | D55: Добавить лист
D57: 6. Сроки и даты
D58: 6.1.1 | E58: Даты получения последних эскизов, от экспертов
D59: 6.1.2 | E59: Даты отправки шаблона на проверку
D60: 6.1.3 | E60: Предполагаемый срок сдачи шаблона в эксплуатацию
D62: 7. Версии
E63: Версия | F63: Отличия от предыдущей
C64: first | D64: 7.1
C65: end | D65: Добавить версию
D67: 8. Дополнительно
D68: 8.1 | E68: Аналогичные("похожие") шаблоны
D69: 8.2 | E69: Особенности шаблона
D70: 8.3 | E70: Модуль на основе данного шаблона
D71: 8.4 | E71: Процедуры загрузки данных в витрины

Sheet modRegionSelectSub (hidden)

Sheet modThisWorkbook (hidden)

Sheet modReestrMO (hidden)

Sheet modSheetMain01 (hidden)

Sheet modSheetMain02 (hidden)

Sheet modSheetMain03 (hidden)

Sheet modSheetMain04 (hidden)

Sheet modSheetMain05 (hidden)
